bitfinex-derivatives/quotes_BTCF0:USTF0_20250325
["timestamp","ask_amount","ask_price","bid_price","bid_amount"]
[1742866561925,0.28174498,86928.0,86927.0,0.1440017]
[1742866562127,0.28174498,86928.0,86927.0,0.1428017]
[1742866562128,0.39184498,86928.0,86927.0,0.1428017]
[1742866562927,0.39184498,86928.0,86927.0,0.2578269]
[1742866563131,0.16098048,86928.0,86927.0,0.2684269]
[1742866563331,0.17138865,86928.0,86927.0,0.2684269]
[1742866563721,0.16214856,86928.0,86927.0,0.2684269]
[1742866564122,0.16214856,86928.0,86927.0,0.8892269]
[1742866564123,0.02013011,86928.0,86927.0,0.8892269]
[1742866564530,0.12474584,86928.0,86927.0,0.8892269]
[1742866564727,0.00972194,86928.0,86927.0,0.8892269]
[1742866565131,0.00043997,86930.0,86929.0,0.1150226]
[1742866565433,0.00135997,86930.0,86929.0,0.62706487]
[1742866566932,0.00043997,86930.0,86929.0,0.62706487]
[1742866567132,0.20231871,86937.0,86936.0,0.1150133]
[1742866567333,0.20315871,86937.0,86936.0,0.7264133]
[1742866568225,0.00084,86937.0,86936.0,0.9310133]
[1742866568523,0.1118,86940.0,86936.0,0.816]
[1742866568725,0.13247917,86937.0,86936.0,0.816]
[1742866568932,0.13331917,86937.0,86936.0,0.816]
[1742866569125,0.13331917,86937.0,86936.0,0.9310133]
[1742866569331,0.01830717,86937.0,86936.0,0.9310133]
[1742866570619,0.23770717,86937.0,86936.0,0.9310133]
[1742866570933,0.23770717,86937.0,86936.0,0.5702133]
[1742866572238,0.12590717,86937.0,86936.0,0.5702133]
[1742866572422,0.00084,86937.0,86936.0,0.9310133]
[1742866572738,0.20231871,86946.0,86945.0,0.1150014]
[1742866573231,0.20315871,86946.0,86945.0,0.1156014]
[1742866573438,0.42575881,86946.0,86945.0,0.1156014]
[1742866573830,0.31870048,86946.0,86945.0,0.2667014]
[1742866574228,0.43370058,86946.0,86945.0,0.2667014]
[1742866576420,0.36672817,86946.0,86945.0,0.2667014]
[1742866576626,0.25172807,86946.0,86945.0,0.2667014]
[1742866577033,0.36672817,86946.0,86945.0,0.2667014]
[1742866577229,0.25172807,86946.0,86945.0,0.2667014]
[1742866577421,0.36672817,86946.0,86945.0,0.2667014]
[1742866577628,0.25172807,86946.0,86945.0,0.2667014]
[1742866578940,0.36672817,86946.0,86945.0,0.2667014]
[1742866579237,0.36192807,86946.0,86945.0,0.2667014]
[1742866579838,0.00084,86946.0,86945.0,0.8975014]
[1742866580031,0.1066,86951.0,86950.0,0.1149948]
[1742866580229,0.10748001,86951.0,86950.0,0.3555948]
[1742866580433,0.22724049,86951.0,86950.0,0.2406]
[1742866580638,0.33794049,86951.0,86950.0,0.2406]
[1742866580838,0.44484049,86951.0,86950.0,0.3555948]
[1742866581729,0.32984709,86951.0,86950.0,0.3555948]
[1742866581923,0.22294709,86951.0,86950.0,0.3555948]
[1742866582130,0.22294709,86951.0,86950.0,0.4648948]
[1742866583441,0.22394709,86951.0,86950.0,0.4648948]
[1742866584128,0.33894049,86951.0,86950.0,0.4648948]
[1742866584933,0.33894049,86951.0,86950.0,0.3555948]
[1742866588944,0.33894049,86951.0,86941.0,0.1875027]
[1742866588945,0.0575016,86944.0,86936.0,8e-05]
[1742866589245,0.1150133,86936.0,86932.0,0.115018]
[1742866589443,0.47693331,86936.0,86935.0,0.00124]
[1742866589638,0.1150173,86933.0,86932.0,0.115018]
[1742866589946,0.1150252,86927.0,86925.0,8e-05]
[1742866590137,0.48744438,86927.0,86926.0,0.1751065]
[1742866590336,0.47686521,86927.0,86926.0,0.1757465]
[1742866590537,0.47686521,86927.0,86926.0,0.1756665]
[1742866590738,0.60271847,86927.0,86926.0,0.1756665]
[1742866591649,0.60371847,86927.0,86926.0,0.1756665]
[1742866591945,0.48869327,86927.0,86926.0,0.1756665]
[1742866592147,0.12789327,86927.0,86926.0,0.1756665]
[1742866592335,0.22839327,86927.0,86926.0,0.1756665]
[1742866592539,0.22839327,86927.0,86926.0,0.3716665]
[1742866593044,0.22835326,86927.0,86926.0,0.3716665]
[1742866593239,0.34441847,86927.0,86926.0,0.3716665]
[1742866594642,0.22939327,86927.0,86926.0,0.3716665]
[1742866595238,0.34441847,86927.0,86926.0,0.3716665]
[1742866595546,0.34441847,86927.0,86926.0,0.06064]
[1742866595948,0.34441847,86927.0,86926.0,0.06]
[1742866596144,0.22939327,86927.0,86926.0,0.1757065]
[1742866596345,0.22939327,86927.0,86926.0,0.2735065]
[1742866596548,0.34441847,86927.0,86926.0,0.2735065]
[1742866596955,0.22939327,86927.0,86926.0,0.2735065]
[1742866598056,0.22939327,86927.0,86926.0,0.3736065]
[1742866598243,0.13159327,86927.0,86926.0,0.3836065]
[1742866599142,0.1047,86938.0,86937.0,0.115012]
[1742866599343,0.09662,86938.0,86937.0,0.125012]
[1742866599546,0.00072,86938.0,86937.0,0.355612]
[1742866599747,0.20231871,86939.0,86938.0,0.1150106]
[1742866599942,0.20231871,86941.0,86940.0,0.115008]
[1742866600148,0.20307871,86941.0,86940.0,0.385608]
[1742866600743,0.30777871,86941.0,86940.0,0.385608]
[1742866601252,0.20307871,86941.0,86940.0,0.746408]
[1742866601448,0.20231871,86941.0,86940.0,0.786408]
[1742866601645,0.20231871,86941.0,86940.0,0.79717345]
[1742866602663,0.20307871,86941.0,86940.0,0.79717345]
[1742866602861,0.20307871,86941.0,86940.0,0.786408]
[1742866603249,0.00076,86941.0,86940.0,0.786408]
[1742866603447,0.097,86947.0,86946.0,0.1150001]
[1742866603647,0.0978,86947.0,86946.0,0.2744401]
[1742866603849,0.1997,86947.0,86946.0,0.2744401]
[1742866604153,0.20658352,86947.0,86946.0,0.2744401]
[1742866604755,0.68238222,86947.0,86946.0,0.1456801]
[1742866605053,0.68238222,86947.0,86946.0,0.03068]
[1742866605261,0.56738352,86947.0,86946.0,0.1456801]
[1742866605667,0.20658352,86947.0,86946.0,0.1456801]
[1742866606049,0.32158222,86947.0,86946.0,0.1456801]
[1742866606249,0.20658352,86947.0,86946.0,0.1456801]
[1742866608048,0.32158222,86947.0,86946.0,0.03068]
[1742866608248,0.20658352,86947.0,86946.0,0.1456801]
[1742866608659,0.20658352,86947.0,86946.0,0.1156801]
[1742866611462,0.20658352,86947.0,86946.0,0.2138801]
[1742866618568,0.20658352,86947.0,86946.0,0.3182801]
[1742866619160,0.20658352,86947.0,86946.0,0.4229801]
[1742866619562,0.10958352,86947.0,86946.0,0.4229801]
[1742866619871,0.1027,86947.0,86946.0,0.4229801]
[1742866621664,0.2057,86947.0,86946.0,0.2138801]
[1742866622073,0.2057,86947.0,86946.0,0.3172801]
[1742866622461,0.2057,86947.0,86946.0,0.3372801]
[1742866623668,0.2057,86947.0,86946.0,0.2338801]
[1742866623870,0.20503918,86947.0,86946.0,0.2338801]
[1742866624266,0.20503918,86947.0,86946.0,0.3363801]
[1742866624672,0.20503918,86947.0,86946.0,0.2338801]
[1742866625065,0.20503918,86947.0,86946.0,0.3363801]
[1742866626375,0.20562,86947.0,86946.0,0.3363801]
[1742866626578,0.20562,86947.0,86946.0,0.5963801]
[1742866626579,1e-07,86947.0,86946.0,0.5963801]
[1742866626770,0.0004,86968.0,86946.0,0.5963801]
[1742866626771,0.0004,86968.0,86967.0,0.1149723]
[1742866626960,1e-08,86968.0,86967.0,1.1528123]
[1742866627163,0.1041,86979.0,86972.0,0.1149657]
[1742866627371,0.1041,86979.0,86972.0,0.6660457]
[1742866627570,0.3608,86991.0,86972.0,0.6660457]
[1742866627571,0.3608,86991.0,86983.0,0.1149511]
[1742866627773,0.3608,86995.0,86987.0,0.1149459]
[1742866627968,0.30751697,86988.0,86987.0,0.3549459]
[1742866628178,0.30751697,86988.0,86987.0,0.3560659]
[1742866628370,0.30751697,86988.0,86987.0,0.3660659]
[1742866628667,0.37349433,86992.0,86991.0,0.1149406]
[1742866628867,0.18301849,86994.0,86993.0,0.1149379]
[1742866629066,0.0747582,86996.0,86995.0,0.1149353]
[1742866629267,0.0747582,86996.0,86995.0,1.0637353]
[1742866629569,0.0268198,86996.0,86995.0,1.0637353]
[1742866629763,8e-05,87005.0,86998.0,0.1149313]
[1742866629979,8e-05,87005.0,86998.0,0.6064913]
[1742866631072,8e-05,87005.0,86998.0,0.61727205]
[1742866631778,0.10297249,87007.0,86998.0,0.62227205]
[1742866632880,0.10297249,87007.0,86998.0,0.8440513]
[1742866633177,0.10806,86999.0,86998.0,0.8440513]
[1742866633884,0.10806,86999.0,86998.0,0.7178913]
[1742866634175,0.10806,86999.0,86998.0,0.8439713]
[1742866634375,0.21506,86999.0,86998.0,0.8439713]
[1742866634765,0.21506,86999.0,86998.0,0.7178913]
[1742866635174,0.21506,86999.0,86998.0,0.8438513]
[1742866635374,0.21506,86999.0,86998.0,0.8437713]
[1742866635869,0.21506,86999.0,86998.0,0.7178913]
[1742866636280,0.21506,86999.0,86998.0,0.8436513]
[1742866636787,0.69079,86999.0,86998.0,0.62224]
[1742866637081,0.69079,86999.0,86998.0,0.5071713]
[1742866637082,0.21506,86999.0,86998.0,0.5071713]
[1742866637880,0.21506,86999.0,86998.0,0.5021713]
[1742866638080,0.21606,86999.0,86998.0,0.6111713]
[1742866640070,0.21606,86999.0,86998.0,0.3511713]
[1742866640679,0.33099,86999.0,86998.0,0.00656]
[1742866640982,0.1149326,86997.0,86996.0,0.240334]
[1742866641177,0.11553261,86997.0,86996.0,0.116054]
[1742866641574,0.00060001,86997.0,86995.0,0.3608]
[1742866641879,0.216434,86996.0,86995.0,0.36156]
[1742866642071,0.217194,86996.0,86995.0,0.36156]
[1742866642581,0.217194,86996.0,86995.0,0.4764953]
[1742866642781,0.10226,86996.0,86995.0,0.4764953]
[1742866643076,0.1015,86996.0,86995.0,0.4764953]
[1742866643481,0.001,86997.0,86996.0,0.114934]
[1742866643674,0.001,86997.0,86996.0,0.770854]
[1742866644075,0.00404,86997.0,86996.0,0.520854]
[1742866644482,0.00304,86997.0,86996.0,0.520854]
[1742866645373,0.11104,86997.0,86996.0,0.395694]
[1742866645574,0.1118,86997.0,86996.0,0.521614]
[1742866646179,0.2259726,86997.0,86996.0,0.521614]
[1742866646374,0.2268126,86997.0,86996.0,0.521614]
[1742866646578,0.11188,86997.0,86996.0,0.521614]
[1742866646978,0.2268126,86997.0,86996.0,0.521614]
[1742866647284,0.3332126,86997.0,86996.0,0.395694]
[1742866647685,0.6940126,86997.0,86996.0,0.395694]
[1742866647880,0.6940126,86997.0,86996.0,0.00076]
[1742866648185,0.1149379,86993.0,86992.0,0.0004]
[1742866648369,0.1157379,86993.0,86992.0,0.00124]
[1742866648775,0.0574733,86987.0,86984.0,0.1149472]
[1742866648970,0.3608,86985.0,86984.0,0.1731815]
[1742866649183,0.36164,86985.0,86984.0,0.1731815]
[1742866649379,0.57274,86985.0,86984.0,0.1731815]
[1742866649678,0.57274,86985.0,86984.0,0.36156]
[1742866649679,0.3268885,86985.0,86984.0,0.36156]
[1742866649881,0.3268885,86985.0,86984.0,0.00076]
[1742866650080,0.2299049,86983.0,86980.0,0.0574775]
[1742866650278,0.11555111,86983.0,86982.0,0.1149525]
[1742866650478,0.11555111,86983.0,86982.0,0.1157125]
[1742866650880,0.11555111,86983.0,86982.0,0.00076]
[1742866651080,0.1149578,86978.0,86977.0,0.1149586]
[1742866651277,0.1157978,86978.0,86977.0,0.1757186]
[1742866651584,0.114972,86971.0,86970.0,0.1149627]
[1742866651782,0.1149636,86974.0,86973.0,8e-05]
[1742866652090,0.11556361,86974.0,86973.0,0.01068]
[1742866652385,0.00060001,86974.0,86973.0,0.1250444]
[1742866652691,0.11556301,86974.0,86973.0,0.1256044]
[1742866653193,0.11656301,86974.0,86973.0,0.1256044]
[1742866653486,0.11656301,86974.0,86973.0,0.01064]
[1742866653686,0.1149736,86966.0,86965.0,0.00017249]
[1742866653894,0.11557361,86966.0,86965.0,0.15077249]
[1742866654079,0.11557361,86966.0,86965.0,0.26574629]
[1742866655578,0.11657361,86966.0,86965.0,0.26574629]
[1742866655774,0.00160001,86966.0,86965.0,0.26574629]
[1742866656182,0.001,86966.0,86965.0,0.26574629]
[1742866656385,0.002,86966.0,86965.0,0.26574629]
[1742866656987,0.1169736,86966.0,86965.0,0.26574629]
[1742866657491,0.002,86966.0,86965.0,0.26574629]
[1742866657881,0.1169736,86966.0,86965.0,0.23574629]
[1742866658077,0.11757361,86966.0,86965.0,0.23574629]
[1742866658482,0.11757361,86966.0,86965.0,0.12077249]
[1742866658687,0.47837361,86966.0,86965.0,0.12077249]
[1742866658881,0.47837361,86966.0,86965.0,0.23574739]
[1742866661884,0.58507361,86966.0,86965.0,0.23574739]
[1742866662090,0.58507361,86966.0,86965.0,0.13574739]
[1742866663386,0.36340001,86966.0,86965.0,0.23634739]
[1742866663898,0.47837361,86966.0,86965.0,0.23634739]
[1742866664795,0.36340001,86966.0,86965.0,0.23634739]
[1742866665198,0.47140001,86966.0,86965.0,0.23634739]
[1742866665402,0.58637361,86966.0,86965.0,0.23634739]
[1742866665588,0.47140001,86966.0,86965.0,0.25634739]
[1742866665990,0.58637361,86966.0,86965.0,0.25634739]
[1742866667396,0.47140001,86966.0,86965.0,0.25634739]
[1742866667598,0.58637361,86966.0,86965.0,0.25634739]
[1742866667799,0.47140001,86966.0,86965.0,0.25634739]
[1742866668198,0.36340001,86966.0,86965.0,0.25634739]
[1742866670601,0.00260001,86966.0,86965.0,0.25634739]
[1742866670902,0.002,86966.0,86965.0,0.25634739]
[1742866672299,0.0016,86966.0,86965.0,0.50634739]
[1742866672899,0.0016,86966.0,86965.0,0.60764739]
[1742866674006,0.0016,86966.0,86965.0,0.73308739]
[1742866674700,0.0016,86966.0,86965.0,0.73296739]
[1742866675804,0.0016,86966.0,86965.0,0.73284739]
[1742866678001,0.0016,86966.0,86965.0,0.93879128]
[1742866679993,1e-07,86966.0,86965.0,0.93879128]
[1742866680806,0.1024,86985.0,86984.0,0.1149498]
[1742866681015,0.00017249,86986.0,86985.0,0.1149485]
[1742866681210,0.0007725,86986.0,86985.0,0.5077485]
[1742866681509,0.0007725,86986.0,86985.0,0.6055485]
[1742866683008,0.0007725,86986.0,86985.0,0.6165485]
[1742866683200,0.00017249,86986.0,86985.0,0.6165485]
[1742866684213,0.00017249,86986.0,86985.0,0.62758264]
[1742866686600,9e-08,86986.0,86985.0,0.62758264]
[1742866687102,0.0004,87000.0,86985.0,0.62758264]
[1742866687103,9e-08,87002.0,87001.0,0.1149274]
[1742866687303,9e-08,87002.0,87001.0,0.7500874]
[1742866687520,0.096,87010.0,87009.0,0.1149168]
[1742866687712,1e-07,87016.0,87010.0,0.1149155]
[1742866687910,1e-07,87011.0,87010.0,0.7396155]
[1742866688099,1e-07,87011.0,87010.0,0.8456155]
[1742866688606,1e-07,87011.0,87010.0,0.85626119]
[1742866689716,1e-07,87011.0,87010.0,0.86483805]
[1742866689911,1e-07,87011.0,87010.0,0.86683805]
[1742866697316,1e-07,87011.0,87010.0,0.99003805]
[1742866701918,0.00017249,87019.0,87010.0,1.35083805]
[1742866702116,0.103,87028.0,87027.0,0.114893]
[1742866702327,0.1019,87042.0,87031.0,0.1148877]
[1742866702526,0.1019,87042.0,87031.0,0.6355277]
[1742866702926,8e-05,87037.0,87031.0,0.6355277]
[1742866703130,8e-05,87037.0,87031.0,0.8383277]
[1742866703819,8e-05,87037.0,87036.0,0.1148811]
[1742866704031,8e-05,87037.0,87036.0,1.0062811]
[1742866704619,0.00017239,87040.0,87039.0,0.1148772]
[1742866704820,0.00017239,87040.0,87039.0,0.4678772]
[1742866705529,0.0007724,87040.0,87039.0,0.4678772]
[1742866705726,0.2045724,87040.0,87039.0,0.4678772]
[1742866706132,0.2045724,87040.0,87039.0,0.3454772]
[1742866706433,0.2045724,87040.0,87039.0,0.4678772]
[1742866707022,0.2055724,87040.0,87039.0,0.4678772]
[1742866707231,0.2065724,87040.0,87039.0,0.4678772]
[1742866707621,0.2065724,87040.0,87039.0,0.4677572]
[1742866708025,0.2065724,87040.0,87039.0,0.5675572]
[1742866708735,0.2065724,87040.0,87039.0,0.4676372]
[1742866709337,0.2065724,87040.0,87039.0,0.3454772]
[1742866709535,0.3214483,87040.0,87039.0,0.2306]
[1742866710142,0.3214483,87040.0,87039.0,0.3454772]
[1742866710440,0.3214483,87040.0,87039.0,0.2306]
[1742866710630,0.3214483,87040.0,87039.0,0.3454772]
[1742866710832,0.2065724,87040.0,87039.0,0.3454772]
[1742866713138,0.3214483,87040.0,87039.0,0.3454772]
[1742866714245,0.2065724,87040.0,87039.0,0.3454772]
[1742866714648,0.2065724,87040.0,87039.0,0.1154772]
[1742866714948,0.3214483,87040.0,87039.0,0.1154772]
[1742866715348,0.2065724,87040.0,87039.0,0.1154772]
[1742866715551,0.3214483,87040.0,87039.0,0.1154772]
[1742866716635,0.3214483,87040.0,87039.0,0.0006]
[1742866717234,0.3214483,87040.0,87039.0,0.1154772]
[1742866717440,0.3214483,87040.0,87039.0,0.0006]
[1742866717736,0.3214483,87040.0,87039.0,0.1148772]
[1742866718149,0.1148785,87038.0,87037.0,0.0574393]
[1742866718346,0.47627851,87038.0,87037.0,0.0006]
[1742866718550,0.47627851,87038.0,87030.0,0.1791242]
[1742866718551,0.0574425,87033.0,87030.0,0.12132]
[1742866718752,0.0574425,87033.0,87030.0,0.2768064]
[1742866718753,0.1148877,87031.0,87030.0,0.2768064]
[1742866718947,0.00060001,87031.0,87030.0,0.2768064]
[1742866719147,0.09910001,87031.0,87030.0,0.2768064]
[1742866719453,0.30750001,87031.0,87030.0,0.2768064]
[1742866719852,0.30750001,87031.0,87030.0,0.2778064]
[1742866720054,0.3069,87031.0,87030.0,0.3818064]
[1742866720243,0.30750001,87031.0,87030.0,0.3808064]
[1742866720446,0.30750001,87031.0,87030.0,0.3838064]
[1742866723446,0.30750001,87031.0,87030.0,0.4898064]
[1742866723647,0.3069,87031.0,87030.0,0.4898064]
[1742866723847,0.30750001,87031.0,87030.0,0.4898064]
[1742866724349,0.30750001,87031.0,87030.0,0.3684864]
[1742866724555,0.3069,87031.0,87030.0,0.3684864]
[1742866724958,0.30758,87031.0,87030.0,0.3684864]
[1742866725458,0.3069,87031.0,87030.0,0.3684864]
[1742866725755,0.30754,87031.0,87030.0,0.3684864]
[1742866727350,0.3069,87031.0,87030.0,0.3684864]
[1742866727853,0.30750001,87031.0,87030.0,0.3684864]
[1742866728152,0.3069,87031.0,87030.0,0.3684864]
[1742866728356,0.30750001,87031.0,87030.0,0.3684864]
[1742866731363,0.30750001,87031.0,87030.0,0.3284864]
[1742866732349,0.30750001,87031.0,87030.0,0.2136]
[1742866732661,0.78318771,87031.0,87030.0,0.0036]
[1742866732962,0.78318771,87031.0,87030.0,0.003]
[1742866733161,0.79431336,87031.0,87030.0,0.003]
[1742866733747,0.114897,87024.0,87023.0,0.00017239]
[1742866733951,0.47629701,87024.0,87023.0,0.00017239]
[1742866734153,0.47629701,87024.0,87023.0,0.00077239]
[1742866734657,0.67719701,87024.0,87023.0,0.00077239]
[1742866735160,0.67719701,87024.0,87023.0,0.00377239]
[1742866735362,0.67719701,87024.0,87023.0,0.00317239]
[1742866735563,0.67719701,87024.0,87023.0,0.00381239]
[1742866736056,0.67719701,87024.0,87023.0,0.00581239]
[1742866736452,0.67719701,87024.0,87023.0,0.00517239]
[1742866736761,0.67719701,87024.0,87023.0,0.00577239]
[1742866736977,0.67719701,87024.0,87023.0,0.00581239]
[1742866738051,0.67719701,87024.0,87023.0,0.12071069]
[1742866742361,0.36140001,87024.0,87023.0,0.12071069]
[1742866742671,0.36140001,87024.0,87023.0,0.13071069]
[1742866743459,0.00060001,87024.0,87023.0,0.13071069]
[1742866743759,0.3608,87033.0,87032.0,0.1148864]
[1742866744057,0.00017239,87040.0,87039.0,0.1148772]
[1742866744369,0.0007724,87040.0,87039.0,0.2122772]
[1742866744553,0.0007724,87040.0,87039.0,0.3125772]
[1742866744967,0.3608,87070.0,87039.0,2.43906]
[1742866745178,0.00112,87064.0,87061.0,0.1148475]
[1742866745360,0.0004,87064.0,87063.0,0.1148455]
[1742866745671,0.4760231,87080.0,87079.0,0.1148244]
[1742866745868,0.4770231,87080.0,87079.0,0.001]
[1742866746169,0.1148271,87077.0,87076.0,0.1003]
[1742866746358,0.1154671,87077.0,87076.0,0.1013]
[1742866748556,0.1154671,87077.0,87076.0,0.2076]
[1742866748762,0.1234671,87077.0,87076.0,0.2076]
[1742866748957,0.1234671,87077.0,87076.0,0.3224284]
[1742866749761,0.1234671,87077.0,87076.0,0.2076]
[1742866750077,0.1148336,87072.0,87071.0,0.00017229]
[1742866750375,0.4763536,87072.0,87071.0,0.00089229]
[1742866750572,0.4763536,87072.0,87071.0,0.00017229]
[1742866750777,0.4763536,87072.0,87071.0,0.00089229]
[1742866751072,0.6841536,87072.0,87071.0,0.00089229]
[1742866751867,0.6901536,87072.0,87071.0,0.00089229]
[1742866752366,0.6901536,87072.0,87071.0,0.00017229]
[1742866754267,0.6901536,87072.0,87071.0,0.10187229]
[1742866754874,0.6901536,87072.0,87056.0,0.36949232]
[1742866754875,0.0574272,87057.0,87052.0,0.0574297]
[1742866755079,0.4756561,87055.0,87054.0,0.19278]
[1742866755283,0.4763761,87055.0,87054.0,0.00068]
[1742866755572,0.0574332,87048.0,87041.0,0.1001]
[1742866755763,0.1148732,87042.0,87041.0,0.19950248]
[1742866756274,0.4763532,87042.0,87041.0,0.29248]
[1742866757476,0.4763532,87042.0,87041.0,0.10238]
[1742866757683,0.4763532,87042.0,87041.0,0.1017]
[1742866757876,0.4763532,87042.0,87041.0,0.10938]
[1742866758777,0.4763532,87042.0,87041.0,0.007]
[1742866759770,0.4763532,87042.0,87029.0,0.0973]
[1742866759771,0.37006733,87042.0,87018.0,0.00864508]
[1742866759972,0.37006733,87042.0,87023.0,0.05117965]
[1742866759973,0.475697,87024.0,87023.0,0.05117965]
[1742866760177,0.476417,87024.0,87023.0,0.16607795]
[1742866760572,0.476417,87024.0,87023.0,0.05117965]
[1742866760775,0.682517,87024.0,87023.0,0.05045965]
[1742866760969,0.682517,87024.0,87023.0,0.05113965]
[1742866761175,0.682517,87024.0,87023.0,0.05913965]
[1742866761780,0.683517,87024.0,87023.0,0.05913965]
[1742866761976,0.683517,87024.0,87023.0,0.05845965]
[1742866762278,0.683517,87024.0,87023.0,0.17335795]
[1742866762477,0.683517,87024.0,87023.0,0.17403795]
[1742866762885,0.683517,87024.0,87023.0,0.12403795]
[1742866763476,0.683517,87024.0,87023.0,0.22353795]
[1742866763680,0.684517,87024.0,87023.0,0.21753795]
[1742866764691,0.684517,87024.0,87023.0,0.10263965]
[1742866764880,0.684517,87024.0,87023.0,0.10195965]
[1742866765284,0.684517,87024.0,87023.0,0.00245965]
[1742866765995,0.1149049,87018.0,87017.0,0.1038]
[1742866766198,0.1155449,87018.0,87017.0,0.1038]
[1742866766782,0.3186449,87018.0,87017.0,0.1038]
[1742866767005,0.3186449,87018.0,87017.0,0.10448]
[1742866767810,0.1149075,87016.0,87015.0,0.00017229]
[1742866768007,0.4763875,87016.0,87015.0,0.00085229]
[1742866768310,0.4763875,87016.0,87015.0,0.10465229]
[1742866768510,0.4763875,87016.0,87015.0,0.21956119]
[1742866768703,0.00068,87016.0,87015.0,0.22956119]
[1742866769319,0.4756948,87027.0,87026.0,0.1148943]
[1742866769610,0.36148,87027.0,87026.0,0.1156143]
[1742866769805,0.36148,87027.0,87026.0,0.1163743]
[1742866770001,0.00068,87027.0,87026.0,0.1156543]
[1742866770206,0.00068,87027.0,87026.0,0.3250543]
[1742866771209,0.00168,87027.0,87026.0,0.3280543]
[1742866771808,8e-05,87028.0,87027.0,0.114893]
[1742866772015,0.001,87028.0,87027.0,0.355813]
[1742866772207,0.001,87028.0,87027.0,0.460613]
[1742866772511,0.00092,87028.0,87027.0,0.700613]
[1742866772712,0.00017229,87032.0,87031.0,0.1148877]
[1742866772914,0.0010523,87032.0,87031.0,0.4758877]
[1742866774518,0.3608,87037.0,87036.0,0.1148811]
[1742866774717,0.36196,87037.0,87036.0,0.1160411]
[1742866775413,0.36196,87037.0,87036.0,0.3660411]
[1742866775618,0.36196,87037.0,87036.0,0.4770411]
[1742866775817,0.36196,87037.0,87036.0,0.4800411]
[1742866777516,0.00116,87037.0,87036.0,0.4800411]
[1742866777711,8e-05,87038.0,87037.0,0.1148798]
[1742866777913,8e-05,87038.0,87037.0,0.1160398]
[1742866778114,8e-05,87038.0,87037.0,0.3267398]
[1742866778625,0.00017229,87045.0,87044.0,0.1148706]
[1742866778816,0.00133229,87045.0,87044.0,0.1160306]
[1742866779221,0.11620159,87045.0,87044.0,0.1160306]
[1742866779416,0.11620159,87045.0,87044.0,0.3267306]
[1742866780524,0.22620159,87045.0,87044.0,0.3267306]
[1742866781225,0.33640159,87045.0,87044.0,0.3267306]
[1742866781427,0.33640159,87045.0,87044.0,0.3277306]
[1742866782018,0.33640159,87045.0,87044.0,0.3267306]
[1742866782218,0.33640159,87045.0,87044.0,0.3307306]
[1742866783126,0.22153229,87045.0,87044.0,0.3307306]
[1742866783429,0.00133229,87045.0,87044.0,0.3307306]
[1742866785329,0.00017229,87045.0,87044.0,0.3307306]
[1742866786825,0.00017229,87045.0,87044.0,0.5807306]
[1742866787127,8e-05,87059.0,87058.0,0.1148521]
[1742866787323,0.00128001,87059.0,87058.0,0.4768121]
[1742866787526,8e-05,87059.0,87058.0,0.4768121]
[1742866787824,0.00120001,87059.0,87058.0,0.6896121]
[1742866788024,8e-05,87059.0,87058.0,0.6896121]
[1742866788429,0.00072,87059.0,87058.0,0.6896121]
[1742866788726,0.00064,87059.0,87058.0,0.6896121]
[1742866789131,0.1154908,87059.0,87058.0,0.3288121]
[1742866789334,0.3325908,87059.0,87058.0,0.3288121]
[1742866789515,0.3325908,87059.0,87058.0,0.2193121]
[1742866789721,0.3325908,87059.0,87058.0,0.1160121]
[1742866790323,0.3325908,87059.0,87058.0,0.00116]
[1742866790727,0.6933908,87059.0,87058.0,0.00116]
[1742866790929,0.1148574,87055.0,87054.0,0.1148563]
[1742866791128,0.1160174,87055.0,87054.0,0.1160163]
[1742866791330,0.3252174,87055.0,87054.0,0.2275163]
[1742866791528,0.3252174,87055.0,87054.0,0.00116]
[1742866791729,0.1148587,87053.0,87052.0,0.1148594]
[1742866791922,0.11597871,87053.0,87052.0,0.1160194]
[1742866793834,0.11597871,87053.0,87052.0,0.1180194]
[1742866794629,0.00112001,87053.0,87052.0,0.1180194]
[1742866794824,0.11597871,87053.0,87052.0,0.1180194]
[1742866795022,0.11597871,87053.0,87052.0,0.2268194]
[1742866795932,0.00112001,87053.0,87052.0,0.5876194]
[1742866796330,0.00112001,87053.0,87052.0,0.6176194]
[1742866796531,0.1084,87057.0,87056.0,0.1148548]
[1742866796727,0.1084,87057.0,87056.0,0.1159748]
[1742866796923,0.1152442,87064.0,87063.0,0.1148455]
[1742866797124,0.11644421,87064.0,87063.0,0.1160455]
[1742866798128,0.00260001,87064.0,87063.0,0.1160455]
[1742866798329,0.22584421,87064.0,87063.0,0.2214455]
[1742866798536,0.22684421,87064.0,87063.0,0.2214455]
[1742866798924,0.00360001,87064.0,87063.0,0.2214455]
[1742866799124,0.2226,87064.0,87063.0,0.2214455]
[1742866799328,0.22372001,87064.0,87063.0,0.2214455]
[1742866799824,0.33856421,87064.0,87063.0,0.1160455]
[1742866800645,0.22372001,87064.0,87063.0,0.1160455]
[1742866801139,0.22372001,87064.0,87063.0,0.2194455]
[1742866801338,0.00352001,87064.0,87063.0,0.2194455]
[1742866801538,0.0024,87064.0,87063.0,0.2194455]
[1742866801841,0.22372001,87064.0,87063.0,0.2194455]
[1742866804834,0.11442001,87064.0,87063.0,0.2194455]
[1742866805034,0.1133,87064.0,87063.0,0.2494455]
[1742866805254,0.11450001,87064.0,87063.0,0.2494455]
[1742866805543,0.21960001,87064.0,87063.0,0.2494455]
[1742866806944,0.21960001,87064.0,87063.0,0.0012]
[1742866807150,0.33444421,87064.0,87063.0,0.0012]
[1742866807336,0.69524421,87064.0,87063.0,0.0012]
[1742866807530,0.1148535,87058.0,87057.0,0.1148531]
[1742866807751,0.00112001,87058.0,87057.0,0.2609051]
[1742866808331,0.21232001,87058.0,87057.0,0.2609051]
[1742866808538,0.21232001,87058.0,87057.0,0.6217051]
[1742866808740,0.00112001,87058.0,87057.0,0.8717051]
[1742866808945,0.2112,87063.0,87062.0,0.1148468]
[1742866809243,0.0004,87064.0,87063.0,0.1148455]
[1742866809447,9.239e-05,87067.0,87064.0,0.0574215]
[1742866809633,9.239e-05,87067.0,87066.0,0.4756416]
[1742866809839,9.239e-05,87067.0,87066.0,0.9567616]
[1742866810043,9e-08,87067.0,87066.0,1.1763616]
[1742866814042,9e-08,87067.0,87066.0,1.1783616]
[1742866816546,0.11484029,87067.0,87066.0,1.18396]
[1742866816746,0.11484029,87067.0,87066.0,0.57316]
[1742866816948,0.11600029,87067.0,87066.0,0.57316]
[1742866817641,0.11600029,87067.0,87066.0,0.35356]
[1742866818144,0.11600029,87067.0,87066.0,0.23312]
[1742866818353,0.11600029,87067.0,87066.0,0.00312]
[1742866818652,0.32930029,87067.0,87066.0,0.002]
[1742866819253,0.1148548,87056.0,87055.0,0.00017229]
[1742866819442,0.11597481,87056.0,87055.0,0.04133229]